lending/lending_fUSD_20250621
["ID","MTS","AMOUNT","RATE_DAILY","PERIOD"]
[366825988,1750481439004,-151.0,0.00027444,7]
[366825989,1750481439015,-151.0,0.00027444,7]
[366825990,1750481439026,-151.0,0.00027444,7]
[366825991,1750481439036,-276.589349,0.00027444,7]
[366825992,1750481439046,-224.0,0.00027479,7]
[366825993,1750481439056,-151.0,0.00027493,7]
[366825994,1750481439066,-151.826649,0.00027493,7]
[366825995,1750481439077,-409.0094837,0.00027497,2]
[366825996,1750481439088,-2231.96857201,0.000275,2]
[366825997,1750481439098,-1000.0,0.00027521,5]
[366825998,1750481439108,-1004.92556301,0.00027521,2]
[366825999,1750481439117,-200.0,0.00027537,2]
[366826000,1750481439127,-151.0,0.00027553,7]
[366826001,1750481439136,-151.735082,0.00027553,7]
[366826002,1750481439146,-184.14173,0.00027553,7]
[366826004,1750481439155,-151.0,0.00027553,7]
[366826005,1750481439165,-184.14173,0.00027553,7]
[366826006,1750481439174,-151.0,0.00027553,7]
[366826007,1750481439183,-3335.0,0.00027564,2]
[366826008,1750481439192,-946.0,0.00027564,2]
[366826009,1750481439202,-803.0,0.00027564,2]
[366826010,1750481439211,-638.0,0.00027564,2]
[366826011,1750481439221,-1161.0,0.00027564,2]
[366826012,1750481439230,-2005.0,0.00027564,2]
[366826013,1750481439239,-559.0,0.00027564,2]
[366826015,1750481439249,-928.0,0.00027564,2]
[366826017,1750481439259,-591.0,0.00027564,2]
[366826018,1750481439269,-1278.0,0.00027564,2]
[366826020,1750481439279,-1676.0,0.00027564,2]
[366826022,1750481439290,-7135.0,0.00027564,2]
[366826023,1750481439300,-855.0,0.00027564,2]
[366826024,1750481439310,-4095.0,0.00027564,2]
[366826025,1750481439321,-885.0,0.00027564,2]
[366826026,1750481439330,-151.0,0.00027564,7]
[366826027,1750481439340,-506.067724,0.00027564,7]
[366826028,1750481439351,-506.067724,0.00027564,7]
[366826029,1750481439361,-151.0,0.00027564,7]
[366826030,1750481439372,-151.0,0.00027564,7]
[366826033,1750481439381,-206.083001,0.00027564,7]
[366826036,1750481439391,-206.083001,0.00027564,7]
[366826038,1750481439401,-183.408709,0.00027564,7]
[366826039,1750481439411,-183.408709,0.00027564,7]
[366826040,1750481439420,-157.072402,0.00027564,7]
[366826041,1750481439430,-157.072402,0.00027564,7]
[366826042,1750481439440,-174.167856,0.00027564,7]
[366826043,1750481439450,-240.600658,0.00027564,7]
[366826044,1750481439461,-151.0,0.00027564,7]
[366826045,1750481439470,-400.91536243,0.0002757,2]
[366826046,1750481439480,-5714.01004,0.0002759,2]
[366826047,1750481439490,-151.0,0.0002759,7]
[366826048,1750481439500,-370.459324,0.0002759,7]
[366826049,1750481439511,-151.0,0.0002759,7]
[366826050,1750481439521,-370.459324,0.0002759,7]
[366826051,1750481439531,-151.0,0.0002759,7]
[366826052,1750481439541,-501.83669332,0.00027621,5]
[366826053,1750481439552,-270.94,0.00027686,2]
[366826054,1750481439561,-151.0,0.00027697,2]
[366826055,1750481439571,-501.75177155,0.000277,30]
[366826056,1750481439580,-500.0,0.000277,30]
[366826057,1750481439590,-561.38294796,0.000277,30]
[366826058,1750481439599,-507.63061598,0.000277,30]
[366826059,1750481439609,-501.66322896,0.000277,30]
[366826060,1750481439619,-502.56745581,0.000277,30]
[366826061,1750481439629,-503.67170499,0.000277,30]
[366826062,1750481439640,-528.96364369,0.000277,30]
[366826063,1750481439649,-501.20707651,0.000277,30]
[366826064,1750481439659,-248.30834442,0.000277,30]
[366826065,1750481439670,-338.51975065,0.000277,30]
[366826066,1750481439680,-507.62311075,0.000277,30]
[366826067,1750481439690,-162.7666287,0.000277,30]
[366826068,1750481439699,-500.0,0.000277,30]
[366826069,1750481439710,-500.0,0.000277,30]
[366826070,1750481439720,-5025.88050473,0.000277,2]
[366826071,1750481439730,-503.99003277,0.000277,30]
[366826072,1750481439740,-500.0,0.000277,30]
[366826073,1750481439750,-500.0,0.000277,30]
[366826074,1750481439760,-500.0,0.000277,30]
[366826075,1750481439770,-500.0,0.000277,30]
[366826076,1750481439779,-500.0,0.000277,30]
[366826077,1750481439789,-500.0,0.000277,30]
[366826078,1750481439800,-151.799172,0.000277,7]
[366826079,1750481439810,-151.0,0.000277,7]
[366826080,1750481439824,-151.97599,0.000277,7]
[366826081,1750481439834,-151.0,0.000277,7]
[366826082,1750481439844,-151.0,0.000277,7]
[366826083,1750481439854,-151.0,0.000277,7]
[366826084,1750481439866,-151.0,0.000277,7]
[366826085,1750481439876,-151.0,0.000277,7]
[366826086,1750481439886,-153.179123,0.000277,7]
[366826087,1750481439896,-152.870551,0.000277,7]
[366826088,1750481439906,-151.0,0.000277,7]
[366826089,1750481439916,-152.770873,0.000277,7]
[366826090,1750481439926,-151.0,0.000277,7]
[366826091,1750481439936,-152.354854,0.000277,7]
[366826092,1750481439946,-151.0,0.000277,7]
[366826093,1750481439956,-152.120092,0.000277,7]
[366826094,1750481439966,-151.0,0.000277,7]
[366826095,1750481439976,-151.0,0.000277,7]
[366826096,1750481439986,-198.343005,0.000277,7]
[366826097,1750481439996,-151.837463,0.000277,7]
[366826098,1750481440006,-151.0,0.000277,7]
[366826099,1750481440016,-151.0,0.000277,7]
[366826100,1750481440026,-151.0,0.000277,7]
[366826101,1750481440035,-151.0,0.000277,7]
[366826103,1750481440045,-151.0,0.000277,7]
[366826104,1750481440055,-151.0,0.000277,7]
[366826105,1750481440065,-151.0,0.000277,7]
[366826106,1750481440075,-500.0,0.000277,30]
[366826107,1750481440085,-224.0,0.00027725,2]
[366826108,1750481440096,-500.0,0.00027773,5]
[366826109,1750481440106,-500.0,0.00027773,5]
[366826110,1750481440116,-200.0,0.00027782,2]
[366826111,1750481440125,-151.33,0.00027789,2]
[366826112,1750481440135,-340.2499374,0.0002779,2]
[366826113,1750481440145,-151.33,0.0002779,2]
[366826114,1750481440155,-151.33,0.0002779,2]
[366826115,1750481440165,-151.33,0.0002779,2]
[366826116,1750481440176,-151.33,0.0002779,2]
[366826117,1750481440187,-151.33,0.0002779,2]
[366826118,1750481440198,-151.33,0.0002779,2]
[366826119,1750481440208,-151.33,0.0002779,2]
[366826120,1750481440219,-151.33,0.0002779,2]
[366826121,1750481440229,-151.33,0.0002779,2]
[366826122,1750481440239,-151.33,0.0002779,2]
[366826123,1750481440249,-836.27296323,0.00027797,17]
[366826124,1750481440258,-151.0,0.00027799,7]
[366826125,1750481440268,-153.594347,0.00027799,7]
[366826126,1750481440277,-151.0,0.00027799,7]
[366826127,1750481440287,-171.58297,0.00027799,7]
[366826128,1750481440297,-171.58297,0.00027799,7]
[366826129,1750481440307,-380.0216966,0.00027799,2]
[366826130,1750481440316,-500.0,0.00027799,2]
[366826131,1750481440326,-500.0,0.00027799,2]
[366826132,1750481440337,-398.50794349,0.00027799,2]
[366826133,1750481440346,-530.90836751,0.00027799,2]
[366826134,1750481440356,-530.90836751,0.00027799,2]
[366826135,1750481440366,-231.20735892,0.00027799,2]
[366826136,1750481440377,-530.90836751,0.00027799,2]
[366826137,1750481440388,-530.90836751,0.00027799,2]
[366826138,1750481440397,-530.90836751,0.00027799,2]
[366826139,1750481440408,-530.90836751,0.00027799,2]
[366826140,1750481440417,-530.90836751,0.00027799,2]
[366826141,1750481440427,-500.0,0.00027799,2]
[366826142,1750481440437,-530.90836751,0.00027799,2]
[366826143,1750481440447,-500.0,0.00027799,2]
[366826144,1750481440458,-530.90836751,0.00027799,2]
[366826145,1750481440468,-530.90836751,0.00027799,2]
[366826146,1750481440478,-500.0,0.00027799,2]
[366826147,1750481440488,-530.90836751,0.00027799,2]
[366826148,1750481440498,-530.90836751,0.00027799,2]
[366826149,1750481440508,-530.90836751,0.00027799,2]
[366826150,1750481440519,-423.14548105,0.00027799,2]
[366826151,1750481440528,-530.90836751,0.00027799,2]
[366826152,1750481440538,-530.90836751,0.00027799,2]
[366826153,1750481440549,-530.90836751,0.00027799,2]
[366826154,1750481440558,-530.90836751,0.00027799,2]
[366826155,1750481440567,-544.1810767,0.00027799,2]
[366826156,1750481440577,-544.1810767,0.00027799,2]
[366826157,1750481440586,-544.1810767,0.00027799,2]
[366826158,1750481440595,-544.1810767,0.00027799,2]
[366826159,1750481440604,-544.1810767,0.00027799,2]
[366826160,1750481440613,-544.1810767,0.00027799,2]
[366826161,1750481440622,-544.1810767,0.00027799,2]
[366826162,1750481440632,-544.1810767,0.00027799,2]
[366826163,1750481440641,-544.1810767,0.00027799,2]
[366826164,1750481440651,-544.1810767,0.00027799,2]
[366826165,1750481440661,-544.1810767,0.00027799,2]
[366826166,1750481440670,-1351121.93580734,0.000278,5]
[366826167,1750481440680,-6408.66463597,0.000278,5]
[366826168,1750481440690,-1000000.0,0.000278,120]
[366826169,1750481440699,-151.0,0.000278,7]
[366826170,1750481440709,-207.502118,0.000278,7]
[366826171,1750481440718,-151.0,0.000278,7]
[366826172,1750481440728,-151.0,0.000278,7]
[366826173,1750481440738,-151.0,0.000278,7]
[366826174,1750481440747,-158.657658,0.000278,7]
[366826175,1750481440757,-152.27022,0.000278,7]
[366826176,1750481440767,-151.0,0.000278,7]
[366826177,1750481440776,-151.0,0.000278,7]
[366826178,1750481440787,-152.329601,0.000278,7]
[366826179,1750481440797,-151.0,0.000278,7]
[366826180,1750481440807,-171.58297,0.000278,7]
[366826181,1750481440821,-171.58297,0.000278,7]
[366826182,1750481440831,-151.0,0.000278,7]
[366826183,1750481440840,-151.0,0.000278,7]
[366826184,1750481440850,-281.033427,0.000278,7]
[366826185,1750481440859,-233.428433,0.000278,7]
[366826186,1750481440869,-151.0,0.000278,7]
[366826187,1750481440879,-151.0,0.000278,7]
[366826188,1750481440889,-506.067724,0.000278,7]
[366826189,1750481440899,-506.067724,0.000278,7]
[366826190,1750481440910,-151.0,0.000278,7]
[366826191,1750481440920,-151.0,0.000278,7]
[366826192,1750481440930,-151.0,0.000278,7]
[366826193,1750481440940,-206.083001,0.000278,7]
[366826194,1750481440949,-206.083001,0.000278,7]
[366826195,1750481440959,-151.0,0.000278,7]
[366826196,1750481440969,-183.408709,0.000278,7]
[366826197,1750481440979,-183.408709,0.000278,7]
[366826198,1750481440989,-177.735469,0.000278,7]
[366826199,1750481440999,-157.072402,0.000278,7]
[366826200,1750481441009,-157.072402,0.000278,7]
[366826201,1750481441018,-151.0,0.000278,7]
[366826202,1750481441028,-151.0,0.000278,7]
[366826203,1750481441038,-184.14173,0.000278,7]
[366826204,1750481441048,-151.0,0.000278,7]
[366826205,1750481441058,-151.0,0.000278,7]
[366826206,1750481441068,-151.0,0.000278,7]
[366826207,1750481441078,-184.14173,0.000278,7]
[366826208,1750481441088,-151.0,0.000278,7]
[366826209,1750481441098,-151.0,0.000278,7]
[366826210,1750481441107,-1900.0,0.000278,10]
[366826211,1750481441117,-151.0,0.000278,7]
[366826212,1750481441126,-370.459324,0.000278,7]
[366826213,1750481441136,-151.0,0.000278,7]
[366826214,1750481441146,-370.459324,0.000278,7]
[366826215,1750481441156,-151.0,0.000278,7]
[366826216,1750481441166,-151.0,0.000278,7]
[366826217,1750481441176,-500.0,0.00027833,5]
[366826218,1750481441186,-460.31620352,0.00027857,2]
[366826219,1750481441196,-700.0,0.0002787,2]
[366826220,1750481441206,-2600.0,0.000279,10]
[366826221,1750481441215,-653.05,0.00027979,120]
[366826222,1750481441226,-151.33,0.0002799,2]
[366826223,1750481441236,-1227.77947601,0.00028,14]
[366826224,1750481441247,-45702.43488247,0.00028,2]
[366826225,1750481441256,-6891.44167365,0.00028,60]
[366826226,1750481441267,-12856.87801818,0.00028,2]
[366826227,1750481441277,-257.13756037,0.00028,2]
[366826228,1750481441286,-278.68,0.00028,2]
[366826229,1750481441296,-1500.0,0.00028068,5]
[366826230,1750481441306,-5714.01005,0.0002809,2]
[366826231,1750481441316,-151.0,0.0002809,7]
[366826232,1750481441327,-370.459324,0.0002809,7]
[366826233,1750481441336,-151.0,0.0002809,7]
[366826234,1750481441347,-370.459324,0.0002809,7]
[366826235,1750481441357,-151.0,0.0002809,7]
[366826236,1750481441366,-10671.7,0.000281,2]
[366826237,1750481441376,-265.515318,0.000281,7]
[366826238,1750481441386,-256.269433,0.000281,7]
[366826239,1750481441396,-151.0,0.000281,7]
[366826240,1750481441406,-151.0,0.000281,7]
[366826241,1750481441416,-151.0,0.000281,7]
[366826242,1750481441426,-151.0,0.000281,7]
[366826243,1750481441435,-150.0,0.00028118,2]
[366826244,1750481441445,-151.0,0.00028144,7]
[366826245,1750481441455,-151.0,0.00028144,7]
[366826246,1750481441465,-151.0,0.00028144,7]
[366826247,1750481441475,-151.0,0.00028144,7]
[366826248,1750481441485,-506.067724,0.00028144,7]
[366826249,1750481441495,-506.067724,0.00028144,7]
[366826250,1750481441505,-151.0,0.00028144,7]
[366826251,1750481441514,-151.0,0.00028144,7]
[366826252,1750481441524,-206.083001,0.00028144,7]
[366826253,1750481441534,-206.083001,0.00028144,7]
[366826254,1750481441544,-183.408709,0.00028144,7]
[366826255,1750481441554,-183.408709,0.00028144,7]
[366826256,1750481441564,-157.072402,0.00028144,7]
[366826257,1750481441574,-157.072402,0.00028144,7]
[366826258,1750481441583,-400.0,0.0002817,2]
[366826259,1750481441593,-400.0,0.0002817,2]
[366826260,1750481441602,-150.0,0.00028193,2]
[366826261,1750481441611,-150.0,0.00028193,2]
[366826262,1750481441621,-150.0,0.00028193,2]
[366826263,1750481441631,-150.0,0.00028193,2]
[366826264,1750481441641,-150.0,0.00028193,2]
[366826265,1750481441651,-150.0,0.00028193,2]
[366826266,1750481441661,-150.0,0.00028193,2]
[366826267,1750481441671,-150.0,0.00028193,2]
[366826268,1750481441681,-223.193,0.00028193,2]
[366826269,1750481441691,-150.0,0.00028193,2]
[366826270,1750481441701,-150.0,0.00028193,2]
[366826271,1750481441710,-150.0,0.00028193,2]
[366826272,1750481441719,-208.984921,0.00028193,7]
[366826273,1750481441729,-4463.82,0.000282,2]
[366826274,1750481441739,-151.0,0.00028203,7]
[366826275,1750481441750,-836.27296323,0.00028279,18]
[366826276,1750481441760,-151.996361,0.00028294,7]
[366826277,1750481441770,-867.83108252,0.000283,2]
[366826278,1750481441780,-151.0,0.00028307,2]
[366826279,1750481441790,-1000.0,0.00028321,5]
[366826280,1750481441799,-1000.0,0.00028321,5]
[366826281,1750481441810,-224.0,0.00028333,2]
[366826282,1750481441823,-1000.0,0.00028366,2]
[366826283,1750481441832,-1000.0,0.00028381,5]
[366826284,1750481441842,-500.0,0.00028388,5]
[366826285,1750481441852,-1463.0,0.00028422,5]
[366826286,1750481441862,-151.33,0.00028436,2]
[366826287,1750481441873,-151.33,0.00028445,2]
[366826288,1750481441883,-151.33,0.00028445,2]
[366826289,1750481441896,-151.33,0.00028445,2]
[366826290,1750481441907,-151.33,0.00028445,2]
[366826291,1750481441917,-151.33,0.00028445,2]
[366826292,1750481441928,-151.33,0.00028445,2]
[366826293,1750481441938,-151.33,0.00028445,2]
[366826294,1750481441948,-151.33,0.00028445,2]
[366826295,1750481441959,-151.33,0.00028445,2]
[366826296,1750481441970,-151.33,0.00028445,2]
[366826297,1750481441980,-151.33,0.00028445,2]
[366826298,1750481441990,-151.33,0.00028445,2]
[366826299,1750481442000,-151.33,0.00028445,2]
[366826300,1750481442010,-151.33,0.00028445,2]
[366826301,1750481442019,-224.0,0.00028446,2]
[366826302,1750481442028,-151.0,0.00028455,7]
[366826303,1750481442038,-200.0,0.00028465,2]
[366826304,1750481442048,-1357.693991,0.00028468,8]
[366826305,1750481442057,-151.0,0.00028499,7]
[366826306,1750481442068,-171.58297,0.00028499,7]
[366826307,1750481442078,-171.58297,0.00028499,7]
[366826308,1750481442088,-211.146581,0.00028499,7]
[366826309,1750481442098,-184.14173,0.00028499,7]
[366826310,1750481442109,-151.0,0.00028499,7]
[366826311,1750481442119,-184.14173,0.00028499,7]
[366826312,1750481442129,-151.0,0.00028499,7]
[366826313,1750481442140,-2000.0,0.00028499,60]
[366826314,1750481442150,-512.821426,0.00028499,120]
[366826315,1750481442160,-2231.91,0.000285,2]
[366826316,1750481442170,-5714.01004,0.0002859,2]
[366826317,1750481442180,-340.2499374,0.0002859,2]
[366826319,1750481442190,-3820.78,0.000286,2]
[366826320,1750481442200,-1310.86,0.000286,2]
[366826321,1750481442209,-4363.95,0.000286,2]
[366826322,1750481442220,-4235.75,0.000286,2]
[366826323,1750481442229,-2000.0,0.00028616,5]
[366826324,1750481442240,-168.0,0.00028638,2]
[366826325,1750481442250,-238.0,0.000287,2]
[366826326,1750481442260,-376.0,0.000287,2]
[366826327,1750481442270,-769.0,0.000287,2]
[366826328,1750481442280,-151.0,0.000287,7]
[366826329,1750481442291,-370.459324,0.000287,7]
[366826330,1750481442300,-370.459324,0.000287,7]
[366826331,1750481442310,-151.0,0.000287,7]
[366826332,1750481442320,-151.0,0.00028701,2]
[366826333,1750481442329,-1957.856,0.00028701,2]
[366826334,1750481442340,-300.0,0.00028701,2]
[366826335,1750481442350,-668.65185757,0.00028701,2]
[366826336,1750481442360,-300.0,0.00028701,2]
[366826337,1750481442371,-300.0,0.00028701,2]
[366826338,1750481442381,-300.0,0.00028701,2]
[366826339,1750481442391,-300.0,0.00028701,2]
[366826340,1750481442401,-300.0,0.00028701,2]
[366826341,1750481442411,-300.0,0.00028701,2]
[366826342,1750481442420,-300.0,0.00028701,2]
[366826343,1750481442430,-300.0,0.00028701,2]
[366826344,1750481442439,-300.0,0.00028701,2]
[366826345,1750481442449,-300.0,0.00028701,2]
[366826346,1750481442459,-300.0,0.00028701,2]
[366826347,1750481442468,-300.0,0.00028701,2]
[366826348,1750481442478,-300.0,0.00028701,2]
[366826349,1750481442488,-300.0,0.00028701,2]
[366826350,1750481442498,-151.0,0.00028701,2]
[366826351,1750481442507,-151.0,0.00028701,2]
[366826352,1750481442517,-151.0,0.00028701,2]
[366826353,1750481442526,-151.0,0.00028701,2]
[366826354,1750481442536,-151.0,0.00028701,2]
[366826355,1750481442546,-151.0,0.00028701,2]
[366826356,1750481442556,-151.0,0.00028701,2]
[366826357,1750481442566,-151.0,0.00028701,2]
[366826358,1750481442576,-151.0,0.00028701,2]
[366826359,1750481442586,-151.0,0.00028701,2]
[366826360,1750481442596,-151.0,0.00028701,2]
[366826361,1750481442605,-151.0,0.00028701,2]
[366826362,1750481442615,-151.0,0.00028701,2]
[366826363,1750481442625,-151.0,0.00028701,2]
[366826364,1750481442634,-151.0,0.00028701,2]
[366826365,1750481442644,-207.4,0.00028701,2]
[366826366,1750481442654,-151.0,0.00028701,2]
[366826367,1750481442663,-151.0,0.00028701,2]
[366826368,1750481442673,-151.0,0.00028701,2]
[366826369,1750481442682,-151.0,0.00028701,2]
[366826370,1750481442692,-185.05381519,0.00028701,2]
[366826371,1750481442702,-151.0,0.00028733,7]
[366826372,1750481442713,-279.879162,0.00028733,7]
[366826373,1750481442723,-151.0,0.00028733,7]
[366826374,1750481442735,-224.0,0.00028737,2]
[366826375,1750481442746,-2030.296672,0.00028756,2]
[366826376,1750481442756,-836.27296323,0.00028762,19]
[366826377,1750481442767,-151.0,0.00028767,7]
[366826378,1750481442779,-6828.17,0.00028767,2]
[366826379,1750481442788,-151.0,0.00028799,7]
[366826380,1750481442799,-370.459324,0.00028799,7]
[366826381,1750481442971,-370.459324,0.00028799,7]
[366826382,1750481443019,-151.0,0.00028799,7]
[366826383,1750481443029,-197650.57613123,0.000288,2]
[366826384,1750481443040,-151.0,0.000288,7]
[366826385,1750481443049,-156.055712,0.000288,7]
[366826386,1750481443060,-171.58297,0.000288,7]
[366826387,1750481443070,-171.58297,0.000288,7]
[366826388,1750481443080,-151.0,0.000288,7]
[366826389,1750481443090,-151.0,0.000288,7]
[366826390,1750481443100,-151.0,0.000288,7]
[366826391,1750481443110,-237.776064,0.000288,7]
[366826392,1750481443120,-506.067724,0.000288,7]
[366826393,1750481443130,-506.067724,0.000288,7]
[366826394,1750481443140,-151.0,0.000288,7]
[366826395,1750481443149,-151.0,0.000288,7]
[366826396,1750481443159,-206.083001,0.000288,7]
[366826397,1750481443169,-206.083001,0.000288,7]
[366826398,1750481443179,-183.408709,0.000288,7]
[366826399,1750481443189,-183.408709,0.000288,7]
[366826400,1750481443199,-157.072402,0.000288,7]
[366826401,1750481443209,-157.072402,0.000288,7]
[366826402,1750481443219,-184.14173,0.000288,7]
[366826403,1750481443230,-207.34432,0.000288,7]
[366826404,1750481443240,-151.0,0.000288,7]
[366826405,1750481443251,-184.14173,0.000288,7]
[366826406,1750481443261,-151.0,0.000288,7]
[366826407,1750481443271,-151.0,0.000288,7]
[366826408,1750481443282,-152.40396,0.000288,7]
[366826409,1750481443292,-151.0,0.000288,7]
[366826410,1750481443302,-370.459324,0.000288,7]
[366826411,1750481443321,-370.459324,0.000288,7]
[366826412,1750481443336,-151.0,0.000288,7]
[366826413,1750481443347,-151.0,0.000288,7]
[366826414,1750481443358,-2105.41764886,0.00028811,2]
[366826415,1750481443370,-150.53,0.00028814,2]
[366826416,1750481443381,-150.67,0.00028814,2]
[366826417,1750481443392,-460.31620352,0.00028815,2]
[366826418,1750481443404,-150.0,0.00028839,2]
[366826419,1750481443415,-224.0,0.00028848,2]
[366826420,1750481443427,-2183.31810187,0.00028866,2]
[366826421,1750481443438,-1500.0,0.00028868,5]
[366826422,1750481443449,-1500.0,0.00028868,5]
[366826423,1750481443460,-743.41561247,0.00028898,2]
[366826424,1750481443470,-449.7452123,0.00028898,2]
[366826425,1750481443482,-3200.0,0.000289,10]
[366826426,1750481443492,-14012.21027077,0.000289,2]
[366826427,1750481443503,-151.0,0.00028917,3]
[366826428,1750481443515,-2264.10087164,0.00028921,2]
[366826429,1750481443526,-1500.0,0.00028929,5]
[366826430,1750481443536,-1093.94739708,0.00028935,5]
[366826431,1750481443547,-847.5,0.00028957,15]
[366826432,1750481443558,-1407.36492993,0.00028976,2]
[366826433,1750481443569,-171.58297,0.0002899,7]
[366826434,1750481443579,-171.58297,0.0002899,7]
[366826435,1750481443589,-151.0,0.0002899,7]
[366826436,1750481443601,-151.0,0.0002899,7]
[366826437,1750481443611,-3934.15418369,0.0002899,2]
[366826438,1750481443622,-184.14173,0.00028999,7]
[366826439,1750481443633,-151.0,0.00028999,7]
[366826440,1750481443643,-184.14173,0.00028999,7]
[366826441,1750481443654,-270.997773,0.00028999,7]
[366826442,1750481443664,-29320.03,0.00029,2]
[366826443,1750481443674,-70420.10000515,0.00029,2]
[366826444,1750481443685,-50621.03266432,0.00029,2]
[366826445,1750481443696,-23917.72504624,0.00029,2]
[366826447,1750481443706,-161.0,0.00029,120]
[366826448,1750481443722,-208.17,0.00029,2]
[366826449,1750481443733,-176.0,0.00029,120]
[366826450,1750481443744,-171.58297,0.00029,7]
[366826451,1750481443756,-171.58297,0.00029,7]
[366826453,1750481443766,-151.0,0.00029,7]
[366826456,1750481443778,-158.631639,0.00029,7]
[366826458,1750481443788,-155.61,0.00029,2]
[366826460,1750481443799,-155.61,0.00029,2]
[366826462,1750481443810,-151.0,0.00029,7]
[366826464,1750481443824,-151.0,0.00029,7]
[366826466,1750481443835,-506.067724,0.00029,7]
[366826468,1750481443847,-506.067724,0.00029,7]
[366826469,1750481443858,-506.067724,0.00029,7]
[366826470,1750481443870,-506.067724,0.00029,7]
[366826471,1750481443882,-151.0,0.00029,7]
[366826472,1750481443892,-151.0,0.00029,7]
[366826473,1750481443904,-213.318771,0.00029,7]
[366826474,1750481443915,-206.083001,0.00029,7]
[366826475,1750481443927,-206.083001,0.00029,7]
[366826476,1750481443938,-206.083001,0.00029,7]
[366826477,1750481443949,-206.083001,0.00029,7]
[366826478,1750481443960,-1000.0,0.00029,2]
[366826479,1750481443970,-183.408709,0.00029,7]
[366826480,1750481443981,-183.408709,0.00029,7]
[366826481,1750481443992,-183.408709,0.00029,7]
[366826482,1750481444002,-183.408709,0.00029,7]
[366826483,1750481444012,-157.072402,0.00029,7]
[366826484,1750481444023,-157.072402,0.00029,7]
[366826485,1750481444034,-157.072402,0.00029,7]
[366826486,1750481444044,-157.072402,0.00029,7]
[366826487,1750481444055,-1500.0,0.00029,28]
[366826488,1750481444065,-1500.0,0.00029,28]
[366826489,1750481444075,-1500.0,0.00029,28]
[366826490,1750481444085,-1500.0,0.00029,28]
[366826491,1750481444101,-1500.0,0.00029,28]
[366826492,1750481444111,-1500.0,0.00029,28]
[366826493,1750481444122,-1500.0,0.00029,28]
[366826494,1750481444132,-1500.0,0.00029,28]
[366826495,1750481444143,-1500.0,0.00029,28]
[366826496,1750481444153,-1500.0,0.00029,28]
[366826497,1750481444163,-1500.0,0.00029,28]
[366826498,1750481444178,-1500.0,0.00029,28]
[366826499,1750481444189,-1500.0,0.00029,28]
[366826500,1750481444199,-878.219487,0.00029,28]
[366826501,1750481444210,-184.14173,0.00029,7]
[366826503,1750481444221,-151.0,0.00029,7]
[366826505,1750481444231,-184.14173,0.00029,7]
[366826507,1750481444242,-151.0,0.00029,7]
[366826508,1750481444253,-370.459324,0.00029,7]
[366826509,1750481444263,-370.459324,0.00029,7]
[366826510,1750481444274,-151.0,0.00029,7]
[366826511,1750481444285,-151.0,0.00029,7]
[366826512,1750481444296,-713.38,0.00029009,2]